bitfinex-derivatives/quotes_BTCF0:USTF0_20251228
["timestamp","ask_amount","ask_price","bid_price","bid_amount"]
[1766958239855,0.0114175,87646.0,87633.0,0.00017121]
[1766958240051,0.02488846,87645.0,87633.0,0.00017121]
[1766958240252,0.02488846,87644.0,87633.0,0.00017121]
[1766958240458,0.02488846,87643.0,87633.0,0.00017121]
[1766958240653,0.02488846,87642.0,87633.0,0.00017121]
[1766958240853,0.02488846,87641.0,87633.0,0.00017121]
[1766958241153,0.02488846,87640.0,87633.0,0.00017121]
[1766958241355,0.02488846,87639.0,87633.0,0.00017121]
[1766958241555,0.02488846,87638.0,87633.0,0.00017121]
[1766958241860,0.0114175,87646.0,87633.0,0.00017121]
[1766958242054,0.02489616,87645.0,87633.0,0.00017121]
[1766958242253,0.02489616,87644.0,87633.0,0.00017121]
[1766958242452,0.02489616,87643.0,87633.0,0.00017121]
[1766958242653,0.02489616,87642.0,87633.0,0.00017121]
[1766958242859,0.02489616,87641.0,87633.0,0.00017121]
[1766958243161,0.02489616,87640.0,87633.0,0.00017121]
[1766958243353,0.05712,87643.0,87633.0,0.00017121]
[1766958243558,0.0114175,87646.0,87633.0,0.00017121]
[1766958243758,0.05712,87645.0,87633.0,0.00017121]
[1766958247161,0.05712,87645.0,87630.0,0.11474621]
[1766958255270,0.02477825,87644.0,87630.0,0.11474621]
[1766958255477,0.02477825,87643.0,87630.0,0.11474621]
[1766958255672,0.02477825,87642.0,87630.0,0.11474621]
[1766958255966,0.02477825,87641.0,87629.0,0.00017121]
[1766958256172,0.02477825,87640.0,87630.0,0.11474621]
[1766958256369,0.02477825,87639.0,87630.0,0.12616571]
[1766958256670,0.05712,87645.0,87630.0,0.12616571]
[1766958256671,0.02477825,87638.0,87630.0,0.12616571]
[1766958256873,0.02477825,87637.0,87630.0,0.12616571]
[1766958257067,0.05712,87645.0,87630.0,0.12616571]
[1766958257264,0.02477819,87644.0,87630.0,0.12616571]
[1766958257563,0.02477819,87643.0,87630.0,0.12616571]
[1766958257766,0.02477819,87642.0,87630.0,0.11474621]
[1766958258070,0.02477819,87641.0,87630.0,0.11474621]
[1766958258269,0.02477819,87640.0,87630.0,0.11474621]
[1766958258462,0.02477819,87639.0,87630.0,0.11474621]
[1766958258662,0.02477819,87638.0,87630.0,0.11474621]
[1766958258862,0.02477819,87637.0,87630.0,0.11474621]
[1766958259064,0.05712,87645.0,87630.0,0.11474621]
[1766958259263,0.02477828,87644.0,87630.0,0.11474621]
[1766958259466,0.02477828,87643.0,87630.0,0.11474621]
[1766958259668,0.02477828,87642.0,87630.0,0.11474621]
[1766958259867,0.02477828,87641.0,87630.0,0.11474621]
[1766958260066,0.02477828,87640.0,87630.0,0.11474621]
[1766958260270,0.02477828,87639.0,87630.0,0.11474621]
[1766958260562,0.02477828,87638.0,87630.0,0.11474621]
[1766958260764,0.02477828,87637.0,87630.0,0.11474621]
[1766958260965,0.05712,87645.0,87630.0,0.11474621]
[1766958261165,0.02477829,87644.0,87630.0,0.11474621]
[1766958261366,0.02477829,87643.0,87630.0,0.11474621]
[1766958261566,0.02477829,87642.0,87630.0,0.11474621]
[1766958261770,0.02477829,87641.0,87630.0,0.11474621]
[1766958261969,0.05712,87645.0,87630.0,0.11474621]
[1766958261970,0.02477829,87640.0,87630.0,0.11474621]
[1766958262271,0.02477829,87639.0,87630.0,0.11474621]
[1766958262576,0.02477842,87638.0,87630.0,0.11474621]
[1766958262777,0.02477842,87637.0,87630.0,0.11474621]
[1766958263069,0.02477843,87636.0,87630.0,0.11474621]
[1766958263268,0.05712,87645.0,87630.0,0.11474621]
[1766958263269,0.02477843,87635.0,87630.0,0.11474621]
[1766958263468,0.05712,87645.0,87630.0,0.11474621]
[1766958263674,0.02477852,87644.0,87630.0,0.11474621]
[1766958263864,0.02477852,87643.0,87630.0,0.11474621]
[1766958264063,0.02477852,87642.0,87630.0,0.11474621]
[1766958264270,0.02477852,87641.0,87630.0,0.11474621]
[1766958264471,0.02477852,87640.0,87629.0,0.00017121]
[1766958264670,0.02477852,87639.0,87629.0,0.03017121]
[1766958264869,0.02477852,87638.0,87629.0,0.03017121]
[1766958265168,0.02477852,87637.0,87629.0,0.03017121]
[1766958265370,0.02477852,87636.0,87629.0,0.03017121]
[1766958265574,0.02477852,87635.0,87629.0,0.03017121]
[1766958265775,0.05712,87645.0,87629.0,0.03017121]
[1766958266077,0.02477867,87644.0,87629.0,0.03017121]
[1766958266277,0.02477867,87643.0,87629.0,0.03017121]
[1766958266472,0.02477867,87642.0,87629.0,0.03017121]
[1766958266675,0.02477867,87641.0,87629.0,0.03017121]
[1766958266877,0.02477867,87640.0,87629.0,0.03017121]
[1766958267174,0.02477867,87639.0,87629.0,0.03017121]
[1766958267378,0.02477867,87638.0,87629.0,0.03017121]
[1766958267567,0.02477867,87637.0,87629.0,0.03017121]
[1766958267765,0.02477867,87636.0,87629.0,0.03017121]
[1766958267972,0.02477867,87635.0,87629.0,0.03017121]
[1766958268172,0.05712,87645.0,87629.0,0.03017121]
[1766958268471,0.02477874,87644.0,87629.0,0.03017121]
[1766958268672,0.02477874,87643.0,87629.0,0.03017121]
[1766958268980,0.02477874,87642.0,87629.0,0.03017121]
[1766958269280,0.02477874,87641.0,87629.0,0.03017121]
[1766958269481,0.02477874,87640.0,87629.0,0.03017121]
[1766958269775,0.02477874,87639.0,87629.0,0.03017121]
[1766958269981,0.02477874,87638.0,87629.0,0.03017121]
[1766958270176,0.02477874,87637.0,87629.0,0.03017121]
[1766958270374,0.02477874,87636.0,87629.0,0.03017121]
[1766958270576,0.02477874,87635.0,87629.0,0.03017121]
[1766958270778,0.0114179,87643.0,87629.0,0.03017121]
[1766958270981,0.02477884,87642.0,87629.0,0.03017121]
[1766958271182,0.02477884,87641.0,87629.0,0.03017121]
[1766958271382,0.02477884,87640.0,87629.0,0.03017121]
[1766958271582,0.02477884,87639.0,87629.0,0.03017121]
[1766958271783,0.02477884,87638.0,87629.0,0.03017121]
[1766958271984,0.02477884,87637.0,87629.0,0.03017121]
[1766958272185,0.02477884,87636.0,87629.0,0.03017121]
[1766958272385,0.0114179,87643.0,87629.0,0.03017121]
[1766958272386,0.02477884,87635.0,87629.0,0.03017121]
[1766958272583,0.0114179,87643.0,87629.0,0.03017121]
[1766958272784,0.02469809,87642.0,87629.0,0.03017121]
[1766958272983,0.0114179,87643.0,87629.0,0.03017121]
[1766958272984,0.02469809,87641.0,87629.0,0.03017121]
[1766958273184,0.0114179,87643.0,87629.0,0.03017121]
[1766958273185,0.02469809,87640.0,87629.0,0.03017121]
[1766958273379,0.02469809,87639.0,87629.0,0.03017121]
[1766958273579,0.02469809,87638.0,87629.0,0.03017121]
[1766958273780,0.0114179,87643.0,87629.0,0.03017121]
[1766958273980,0.02469818,87642.0,87629.0,0.03017121]
[1766958274278,0.02469818,87641.0,87629.0,0.03017121]
[1766958274479,0.02469818,87640.0,87629.0,0.03017121]
[1766958274679,0.02469818,87639.0,87629.0,0.03017121]
[1766958274886,0.02469818,87638.0,87629.0,0.03017121]
[1766958275086,0.02469818,87637.0,87629.0,0.03017121]
[1766958275287,0.0114179,87643.0,87629.0,0.03017121]
[1766958275488,0.02469822,87642.0,87629.0,0.03017121]
[1766958275787,0.02469822,87641.0,87629.0,0.03017121]
[1766958275985,0.02469822,87640.0,87629.0,0.03017121]
[1766958276186,0.02469822,87639.0,87629.0,0.03017121]
[1766958276384,0.0114179,87643.0,87629.0,0.03017121]
[1766958276385,0.02469822,87638.0,87629.0,0.03017121]
[1766958276688,0.02469822,87637.0,87629.0,0.03017121]
[1766958276884,0.0114179,87643.0,87629.0,0.03017121]
[1766958277083,0.02469824,87642.0,87629.0,0.03017121]
[1766958277283,0.02469824,87641.0,87629.0,0.03017121]
[1766958277484,0.02469824,87640.0,87629.0,0.03017121]
[1766958277686,0.02469824,87639.0,87629.0,0.03017121]
[1766958277992,0.02469824,87638.0,87629.0,0.03017121]
[1766958278189,0.02469824,87637.0,87629.0,0.03017121]
[1766958278387,0.0114179,87643.0,87629.0,0.03017121]
[1766958278586,0.02469827,87642.0,87629.0,0.03017121]
[1766958278886,0.02469827,87641.0,87629.0,0.03017121]
[1766958279086,0.02469827,87640.0,87629.0,0.03017121]
[1766958279386,0.02469827,87639.0,87629.0,0.03017121]
[1766958279586,0.02469827,87638.0,87629.0,0.03017121]
[1766958279782,0.02469827,87637.0,87629.0,0.03017121]
[1766958279982,0.0114179,87643.0,87629.0,0.03017121]
[1766958280182,0.02469828,87642.0,87629.0,0.03017121]
[1766958280379,0.02469828,87641.0,87629.0,0.03017121]
[1766958280679,0.02469828,87640.0,87629.0,0.03017121]
[1766958280884,0.02469828,87639.0,87629.0,0.03017121]
[1766958281085,0.02469828,87638.0,87629.0,0.03017121]
[1766958281285,0.02469828,87637.0,87629.0,0.03017121]
[1766958281483,0.0114179,87643.0,87629.0,0.03017121]
[1766958281680,0.02469828,87642.0,87629.0,0.03017121]
[1766958281890,0.02469828,87641.0,87629.0,0.03017121]
[1766958282093,0.02469828,87640.0,87629.0,0.03017121]
[1766958282292,0.02469828,87639.0,87629.0,0.03017121]
[1766958282494,0.02469828,87638.0,87629.0,0.03017121]
[1766958282792,0.02469828,87637.0,87629.0,0.03017121]
[1766958283094,0.0114179,87643.0,87629.0,0.03017121]
[1766958283295,0.0246983,87642.0,87629.0,0.03017121]
[1766958283497,0.0246983,87641.0,87629.0,0.03017121]
[1766958283694,0.0246983,87640.0,87629.0,0.03017121]
[1766958283895,0.0246983,87639.0,87629.0,0.03017121]
[1766958284194,0.0246983,87638.0,87629.0,0.03017121]
[1766958284394,0.0246983,87637.0,87629.0,0.03017121]
[1766958284594,0.0114179,87643.0,87629.0,0.03017121]
[1766958284796,0.02469831,87642.0,87629.0,0.03017121]
[1766958284996,0.02469831,87641.0,87629.0,0.03017121]
[1766958285297,0.02469831,87640.0,87629.0,0.03017121]
[1766958285597,0.02469831,87639.0,87629.0,0.03017121]
[1766958285798,0.02469831,87638.0,87629.0,0.03017121]
[1766958285989,0.02469831,87637.0,87629.0,0.03017121]
[1766958286189,0.0114179,87643.0,87629.0,0.03017121]
[1766958286385,0.02469832,87642.0,87629.0,0.03017121]
[1766958286688,0.02469832,87641.0,87629.0,0.03017121]
[1766958286889,0.02469832,87640.0,87629.0,0.03017121]
[1766958287090,0.02469832,87639.0,87629.0,0.03017121]
[1766958287301,0.02469832,87638.0,87629.0,0.03017121]
[1766958287496,0.02469832,87637.0,87629.0,0.03017121]
[1766958287703,0.0114179,87643.0,87629.0,0.03017121]
[1766958288003,0.02469834,87642.0,87629.0,0.03017121]
[1766958288303,0.02469834,87641.0,87629.0,0.03017121]
[1766958288504,0.02469834,87640.0,87629.0,0.03017121]
[1766958288701,0.02469834,87639.0,87629.0,0.03017121]
[1766958288906,0.02469834,87638.0,87629.0,0.03017121]
[1766958289200,0.02469834,87637.0,87629.0,0.03017121]
[1766958289385,0.0114179,87643.0,87629.0,0.03017121]
[1766958289586,0.02469835,87642.0,87629.0,0.03017121]
[1766958289799,0.02469835,87641.0,87629.0,0.03017121]
[1766958290099,0.02469835,87640.0,87629.0,0.03017121]
[1766958290397,0.02469835,87639.0,87629.0,0.03017121]
[1766958290696,0.02469835,87638.0,87629.0,0.03017121]
[1766958290898,0.02469835,87637.0,87629.0,0.03017121]
[1766958291100,0.05712,87645.0,87629.0,0.03017121]
[1766958291398,0.02469838,87644.0,87629.0,0.03017121]
[1766958291598,0.02469838,87643.0,87629.0,0.03017121]
[1766958291792,0.02469838,87642.0,87629.0,0.03017121]
[1766958291988,0.02469838,87641.0,87629.0,0.03017121]
[1766958292189,0.02469838,87640.0,87629.0,0.03017121]
[1766958292390,0.02469838,87639.0,87629.0,0.03017121]
[1766958292690,0.02469838,87638.0,87629.0,0.03017121]
[1766958292886,0.02469838,87637.0,87629.0,0.03017121]
[1766958293093,0.05712,87645.0,87629.0,0.03017121]
[1766958293287,0.02469842,87644.0,87629.0,0.03017121]
[1766958293491,0.02469842,87643.0,87629.0,0.03017121]
[1766958293798,0.02469842,87642.0,87629.0,0.03017121]
[1766958293994,0.02469842,87641.0,87629.0,0.03017121]
[1766958294193,0.02469842,87640.0,87629.0,0.03017121]
[1766958294395,0.02469842,87639.0,87629.0,0.03017121]
[1766958294596,0.02469842,87638.0,87629.0,0.03017121]
[1766958294800,0.02469842,87637.0,87629.0,0.03017121]
[1766958295001,0.05712,87645.0,87629.0,0.03017121]
[1766958295189,0.02469843,87644.0,87629.0,0.03017121]
[1766958295393,0.02469843,87643.0,87629.0,0.03017121]
[1766958295590,0.02469843,87642.0,87629.0,0.03017121]
[1766958295803,0.02469843,87641.0,87629.0,0.03017121]
[1766958296002,0.02469843,87640.0,87629.0,0.03017121]
[1766958296203,0.02469843,87639.0,87629.0,0.03017121]
[1766958296405,0.02469843,87638.0,87629.0,0.03017121]
[1766958296597,0.02469843,87637.0,87629.0,0.03017121]
[1766958296798,0.05712,87645.0,87629.0,0.03017121]
[1766958296999,0.02469844,87644.0,87629.0,0.03017121]
[1766958297199,0.02469844,87643.0,87629.0,0.03017121]
[1766958297399,0.02469844,87642.0,87629.0,0.03017121]
[1766958297598,0.02469844,87641.0,87629.0,0.03017121]
[1766958297799,0.02469844,87640.0,87629.0,0.03017121]
[1766958298000,0.02469844,87639.0,87629.0,0.03017121]
[1766958298206,0.02469844,87638.0,87629.0,0.03017121]
[1766958298506,0.02469844,87637.0,87629.0,0.03017121]
[1766958298705,0.05712,87645.0,87629.0,0.03017121]
[1766958299005,0.02469845,87644.0,87629.0,0.03017121]
[1766958299204,0.02469845,87643.0,87629.0,0.03017121]
[1766958299404,0.02469845,87642.0,87629.0,0.03017121]
[1766958299606,0.02469845,87641.0,87629.0,0.03017121]
[1766958299806,0.02469845,87640.0,87629.0,0.03017121]
[1766958300107,0.02469845,87639.0,87629.0,0.03017121]
[1766958300307,0.02469845,87638.0,87629.0,0.03017121]
[1766958300513,0.02469845,87637.0,87629.0,0.03017121]
[1766958300708,0.05712,87645.0,87629.0,0.03017121]
[1766958300910,0.02469815,87644.0,87629.0,0.03017121]
[1766958301209,0.02469815,87643.0,87629.0,0.03017121]
[1766958301405,0.02469815,87642.0,87629.0,0.03017121]
[1766958301711,0.02469815,87641.0,87629.0,0.03017121]
[1766958301912,0.02469815,87640.0,87629.0,0.03017121]
[1766958302210,0.02469783,87639.0,87629.0,0.03017121]
[1766958302404,0.02469783,87638.0,87629.0,0.03017121]
[1766958302604,0.02469783,87637.0,87629.0,0.03017121]
[1766958302806,0.0114177,87644.0,87629.0,0.03017121]
[1766958303006,0.02471833,87643.0,87629.0,0.03017121]
[1766958303208,0.02471833,87642.0,87629.0,0.03017121]
[1766958303509,0.02471833,87641.0,87629.0,0.03017121]
[1766958303813,0.02471833,87640.0,87629.0,0.03017121]
[1766958304013,0.02471833,87639.0,87629.0,0.03017121]
[1766958304214,0.02471833,87638.0,87629.0,0.03017121]
[1766958304413,0.02471833,87637.0,87629.0,0.03017121]
[1766958304614,0.0114177,87644.0,87629.0,0.03017121]
[1766958304816,0.02471808,87643.0,87629.0,0.03017121]
[1766958305014,0.02471808,87642.0,87629.0,0.03017121]
[1766958305214,0.02471808,87641.0,87629.0,0.03017121]
[1766958305414,0.02471808,87640.0,87629.0,0.03017121]
[1766958305713,0.02471808,87639.0,87629.0,0.03017121]
[1766958305903,0.02471808,87638.0,87629.0,0.03017121]
[1766958306106,0.02471808,87637.0,87629.0,0.03017121]
[1766958306306,0.0114177,87644.0,87629.0,0.03017121]
[1766958306508,0.02471792,87643.0,87629.0,0.03017121]
[1766958306708,0.02471792,87642.0,87629.0,0.03017121]
[1766958307005,0.02471792,87641.0,87629.0,0.03017121]
[1766958307201,0.0114177,87644.0,87629.0,0.03017121]
[1766958307202,0.02471792,87640.0,87629.0,0.03017121]
[1766958307406,0.02471792,87639.0,87629.0,0.03017121]
[1766958307606,0.0114177,87644.0,87629.0,0.03017121]
[1766958307607,0.02471792,87638.0,87629.0,0.03017121]
[1766958307804,0.02471792,87637.0,87629.0,0.03017121]
[1766958308025,0.0114177,87644.0,87629.0,0.03017121]
[1766958308317,0.02471785,87643.0,87629.0,0.03017121]
[1766958308517,0.02471785,87642.0,87629.0,0.03017121]
[1766958308815,0.02471785,87641.0,87629.0,0.03017121]
[1766958309018,0.02471785,87640.0,87629.0,0.03017121]
[1766958309219,0.02471785,87639.0,87629.0,0.03017121]
[1766958309417,0.02471785,87638.0,87629.0,0.03017121]
[1766958309715,0.02471785,87637.0,87629.0,0.03017121]
[1766958310018,0.0114177,87644.0,87629.0,0.03017121]
[1766958310213,0.02471776,87643.0,87629.0,0.03017121]
[1766958310413,0.02471776,87642.0,87629.0,0.03017121]
[1766958310615,0.02471776,87641.0,87629.0,0.03017121]
[1766958310817,0.02471776,87640.0,87629.0,0.03017121]
[1766958311019,0.02471776,87639.0,87629.0,0.03017121]
[1766958311313,0.02471776,87638.0,87629.0,0.03017121]
[1766958311518,0.02471776,87637.0,87629.0,0.03017121]
[1766958311717,0.0114177,87644.0,87629.0,0.03017121]
[1766958311916,0.02471772,87643.0,87629.0,0.03017121]
[1766958312116,0.02471772,87642.0,87629.0,0.03017121]
[1766958312317,0.02471772,87641.0,87629.0,0.03017121]
[1766958312512,0.02471772,87640.0,87629.0,0.03017121]
[1766958312712,0.02471772,87639.0,87629.0,0.03017121]
[1766958312919,0.02471772,87638.0,87629.0,0.03017121]
[1766958313213,0.02471772,87637.0,87629.0,0.03017121]
[1766958313417,0.02471772,87636.0,87629.0,0.03017121]
[1766958313620,0.0114177,87644.0,87629.0,0.03017121]
[1766958313917,0.02471771,87643.0,87629.0,0.03017121]
[1766958314117,0.02471771,87642.0,87629.0,0.03017121]
[1766958314319,0.02471771,87641.0,87629.0,0.03017121]
[1766958314519,0.02471771,87640.0,87629.0,0.03017121]
[1766958314716,0.02471771,87639.0,87629.0,0.03017121]
[1766958314919,0.02471771,87638.0,87629.0,0.03017121]
[1766958315118,0.02471771,87637.0,87629.0,0.03017121]
[1766958315313,0.02471771,87636.0,87629.0,0.03017121]
[1766958315522,0.0114177,87644.0,87629.0,0.03017121]
[1766958315720,0.02471771,87643.0,87629.0,0.03017121]
[1766958315912,0.02471771,87642.0,87629.0,0.03017121]
[1766958316111,0.02471771,87641.0,87629.0,0.03017121]
[1766958316319,0.0114177,87644.0,87629.0,0.03017121]
[1766958317823,0.05712,87645.0,87629.0,0.03017121]
[1766958320224,0.05712,87645.0,87629.0,0.00017121]
[1766958324531,0.05712,87645.0,87630.0,0.11472997]
[1766958324832,0.05712,87645.0,87629.0,0.00017121]
[1766958326128,0.0685377,87645.0,87629.0,0.00017121]
[1766958328323,0.0246117,87644.0,87629.0,0.00017121]
[1766958328526,0.0246117,87643.0,87629.0,0.00017121]
[1766958328724,0.0246117,87642.0,87629.0,0.00017121]
[1766958328930,0.0246117,87641.0,87629.0,0.00017121]
[1766958329225,0.0246117,87640.0,87629.0,0.00017121]
[1766958329429,0.0246117,87639.0,87629.0,0.00017121]
[1766958329624,0.0246117,87638.0,87629.0,0.00017121]
[1766958329825,0.0246117,87637.0,87629.0,0.00017121]
[1766958330128,0.0685377,87645.0,87629.0,0.00017121]
[1766958330331,0.02461201,87644.0,87629.0,0.00017121]
[1766958330535,0.0685377,87645.0,87629.0,0.00017121]
[1766958330536,0.02461201,87643.0,87629.0,0.00017121]
[1766958330730,0.02461201,87642.0,87629.0,0.00017121]
[1766958330932,0.02461201,87641.0,87629.0,0.00017121]
[1766958331230,0.02461201,87640.0,87629.0,0.00017121]
[1766958331429,0.02461201,87639.0,87629.0,0.00017121]
[1766958331632,0.02461201,87638.0,87629.0,0.11490118]
[1766958331820,0.02461201,87637.0,87629.0,0.11490118]
[1766958332022,0.0685377,87645.0,87629.0,0.11490118]
[1766958332231,0.02461197,87644.0,87629.0,0.11490118]
[1766958332433,0.02461197,87643.0,87629.0,0.11490118]
[1766958332630,0.0685377,87645.0,87629.0,0.11490118]
[1766958332631,0.02461197,87642.0,87629.0,0.11490118]
[1766958332832,0.02461197,87641.0,87629.0,0.11490118]
[1766958333032,0.02461197,87640.0,87629.0,0.11490118]
[1766958333228,0.02461197,87639.0,87629.0,0.11490118]
[1766958333427,0.02461197,87638.0,87629.0,0.11490118]
[1766958333629,0.02461197,87637.0,87629.0,0.11490118]
[1766958333829,0.0685377,87645.0,87629.0,0.11490118]
[1766958334027,0.02457026,87644.0,87629.0,0.00017121]
[1766958334228,0.02457026,87643.0,87629.0,0.00017121]
[1766958334433,0.02457026,87642.0,87629.0,0.00017121]
[1766958334632,0.02457026,87641.0,87629.0,0.00017121]
[1766958334833,0.02457026,87640.0,87629.0,0.00017121]
[1766958335134,0.02457026,87639.0,87629.0,0.00017121]
[1766958335324,0.02457026,87638.0,87629.0,0.00017121]
[1766958335527,0.02457026,87637.0,87629.0,0.00017121]
[1766958335728,0.0685377,87645.0,87629.0,0.00017121]
[1766958336028,0.02457026,87644.0,87629.0,0.00017121]
[1766958336228,0.02457026,87643.0,87629.0,0.00017121]
[1766958336429,0.02457026,87642.0,87629.0,0.00017121]
[1766958336629,0.0685377,87645.0,87629.0,0.00017121]
[1766958336630,0.02457026,87641.0,87629.0,0.00017121]
[1766958336833,0.02457026,87640.0,87629.0,0.00017121]
[1766958337034,0.02457026,87639.0,87630.0,0.11472997]
[1766958337236,0.02457026,87638.0,87630.0,0.11472997]
[1766958337539,0.02457026,87637.0,87630.0,0.11472997]
[1766958337740,0.0685377,87645.0,87630.0,0.11472997]
[1766958337942,0.02457026,87644.0,87630.0,0.11472997]
[1766958338142,0.02457026,87643.0,87630.0,0.11472997]
[1766958338341,0.02457026,87642.0,87630.0,0.11472997]
[1766958338542,0.02457026,87641.0,87630.0,0.11472997]
[1766958338741,0.02457026,87640.0,87630.0,0.11472997]
[1766958338942,0.02457026,87639.0,87630.0,0.11472997]
[1766958339144,0.02457026,87638.0,87630.0,0.11472997]
[1766958339442,0.02457026,87637.0,87630.0,0.11472997]
[1766958339743,0.0685377,87645.0,87630.0,0.11472997]
[1766958339943,0.02457021,87644.0,87630.0,0.11472997]
[1766958340139,0.02457021,87643.0,87630.0,0.11472997]
[1766958340338,0.02457021,87642.0,87630.0,0.11472997]
[1766958340540,0.02457021,87641.0,87630.0,0.11472997]
[1766958340840,0.02457021,87640.0,87630.0,0.11472997]
[1766958341141,0.02457021,87639.0,87629.0,0.00017121]
[1766958341343,0.02457021,87638.0,87629.0,0.00017121]
[1766958341545,0.02457021,87637.0,87629.0,0.00017121]
[1766958341735,0.0685377,87645.0,87629.0,0.00017121]
[1766958341935,0.02456997,87644.0,87629.0,0.00017121]
[1766958342230,0.02456997,87643.0,87629.0,0.00017121]
[1766958342432,0.02456997,87642.0,87629.0,0.00017121]
[1766958342630,0.02456997,87641.0,87629.0,0.00017121]
[1766958342835,0.02456997,87640.0,87629.0,0.00017121]
[1766958343038,0.02456997,87639.0,87629.0,0.00017121]
[1766958343236,0.02456997,87638.0,87629.0,0.00017121]
[1766958343436,0.02456997,87637.0,87629.0,0.00017121]
[1766958343741,0.0685377,87645.0,87629.0,0.00017121]
[1766958343944,0.02456977,87644.0,87629.0,0.00017121]
[1766958344245,0.02456977,87643.0,87629.0,0.00017121]
[1766958344444,0.02456977,87642.0,87629.0,0.00017121]
[1766958344644,0.02456977,87641.0,87629.0,0.00017121]
[1766958344845,0.02456977,87640.0,87629.0,0.00017121]
[1766958345044,0.02456977,87639.0,87629.0,0.00017121]
[1766958345245,0.02456977,87638.0,87629.0,0.00017121]
[1766958345445,0.02456977,87637.0,87629.0,0.00017121]
[1766958345651,0.0685377,87645.0,87629.0,0.00017121]
[1766958345851,0.02456964,87644.0,87629.0,0.00017121]
[1766958346052,0.02456964,87643.0,87629.0,0.00017121]
[1766958346348,0.02456964,87642.0,87630.0,0.11472997]
[1766958346552,0.02456964,87641.0,87630.0,0.11472997]
[1766958346752,0.02456964,87640.0,87630.0,0.11472997]
[1766958346953,0.02456964,87639.0,87630.0,0.11472997]
[1766958347152,0.02456964,87638.0,87630.0,0.11472997]
[1766958347353,0.02456964,87637.0,87630.0,0.11472997]
[1766958347553,0.0685377,87645.0,87630.0,0.11472997]
[1766958347851,0.02456955,87644.0,87630.0,0.11472997]
[1766958348151,0.02456955,87643.0,87630.0,0.11472997]
[1766958348353,0.02456955,87642.0,87630.0,0.11472997]
[1766958348553,0.02456955,87641.0,87630.0,0.11472997]
[1766958348752,0.02456955,87640.0,87630.0,0.11472997]
[1766958348953,0.02456955,87639.0,87630.0,0.11472997]
[1766958349156,0.02456955,87638.0,87630.0,0.11472997]
[1766958349352,0.02456955,87637.0,87629.0,0.00017121]
[1766958349652,0.0685377,87645.0,87629.0,0.00017121]
[1766958349853,0.02456956,87644.0,87629.0,0.00017121]
[1766958350053,0.02456956,87643.0,87629.0,0.00017121]
[1766958350257,0.02456956,87642.0,87629.0,0.00017121]
[1766958350453,0.02456956,87641.0,87629.0,0.00017121]
[1766958350653,0.02456956,87640.0,87629.0,0.00017121]
[1766958350857,0.02456956,87639.0,87629.0,0.00017121]
[1766958351049,0.02456956,87638.0,87629.0,0.00017121]
[1766958351249,0.02456956,87637.0,87629.0,0.00017121]
[1766958351450,0.0685377,87645.0,87629.0,0.00017121]
[1766958351650,0.02456957,87644.0,87629.0,0.00017121]
[1766958351959,0.02456957,87643.0,87629.0,0.00017121]
[1766958352158,0.02456957,87642.0,87629.0,0.00017121]
[1766958352457,0.02456957,87641.0,87629.0,0.00017121]
[1766958352658,0.02456957,87640.0,87629.0,0.00017121]
[1766958352858,0.0685377,87645.0,87629.0,0.00017121]
[1766958353048,0.02456958,87644.0,87629.0,0.00017121]
[1766958353250,0.02456958,87643.0,87629.0,0.00017121]
[1766958353453,0.02456958,87642.0,87629.0,0.00017121]
[1766958353657,0.02456958,87641.0,87629.0,0.00017121]
[1766958353858,0.02456958,87640.0,87629.0,0.00017121]
[1766958354050,0.02456958,87639.0,87629.0,0.00017121]
[1766958354255,0.02456958,87638.0,87629.0,0.00017121]
[1766958354454,0.02456958,87637.0,87629.0,0.00017121]
[1766958354658,0.02456958,87636.0,87629.0,0.00017121]
[1766958354959,0.0685377,87645.0,87629.0,0.00017121]
[1766958355154,0.02456962,87644.0,87629.0,0.00017121]
[1766958355358,0.02456962,87643.0,87629.0,0.00017121]
[1766958355663,0.02456962,87642.0,87629.0,0.00017121]
[1766958355864,0.02456962,87641.0,87629.0,0.00017121]
[1766958356164,0.02456962,87640.0,87629.0,0.00017121]
[1766958356363,0.02456962,87639.0,87629.0,0.00017121]
[1766958356555,0.02456962,87638.0,87629.0,0.00017121]
[1766958356756,0.0685377,87645.0,87629.0,0.00017121]
[1766958356757,0.02456962,87637.0,87629.0,0.00017121]
[1766958356959,0.02456962,87636.0,87629.0,0.00017121]
[1766958357158,0.0685377,87645.0,87629.0,0.00017121]
[1766958357357,0.02456964,87644.0,87629.0,0.00017121]
[1766958357564,0.02456964,87643.0,87629.0,0.00017121]
[1766958357760,0.02456964,87642.0,87629.0,0.00017121]
[1766958357961,0.02456964,87641.0,87629.0,0.00017121]
[1766958358161,0.02456964,87640.0,87629.0,0.00017121]
[1766958358366,0.02456964,87639.0,87629.0,0.00017121]
[1766958358665,0.02456964,87638.0,87629.0,0.00017121]
[1766958358865,0.0685377,87645.0,87629.0,0.00017121]
[1766958358866,0.02456964,87637.0,87629.0,0.00017121]
[1766958359065,0.01487791,87636.0,87629.0,0.00017121]
[1766958359266,0.0685377,87645.0,87629.0,0.00017121]
[1766958361464,0.0114177,87645.0,87629.0,0.00017121]
[1766958361659,0.0685377,87645.0,87629.0,0.00017121]
[1766958362460,0.05712,87645.0,87629.0,0.00017121]
[1766958362655,0.05712,87645.0,87630.0,0.11472997]
[1766958365368,0.00017121,87646.0,87630.0,0.11472997]
[1766958365567,0.05729121,87646.0,87630.0,0.11472997]
[1766958369174,0.05712,87646.0,87630.0,0.11472997]
[1766958371172,0.0244208,87645.0,87630.0,0.11472997]
[1766958371360,0.0244208,87644.0,87630.0,0.11472997]
[1766958371564,0.0244208,87643.0,87630.0,0.11472997]
[1766958371767,0.0244208,87642.0,87630.0,0.11472997]
[1766958372061,0.0244208,87641.0,87630.0,0.11472997]
[1766958372266,0.0244208,87640.0,87630.0,0.11472997]
[1766958372466,0.0244208,87639.0,87630.0,0.11472997]
[1766958372767,0.0244208,87638.0,87630.0,0.11472997]
[1766958372970,0.05712,87646.0,87630.0,0.11472997]
[1766958373274,0.02442072,87645.0,87630.0,0.11472997]
[1766958373474,0.02442072,87644.0,87630.0,0.11472997]
[1766958373667,0.02442072,87643.0,87630.0,0.11472997]
[1766958373868,0.02442072,87642.0,87630.0,0.11472997]
[1766958374070,0.02442072,87641.0,87630.0,0.11472997]
[1766958374376,0.02442072,87640.0,87630.0,0.11472997]
[1766958374571,0.0114173,87648.0,87630.0,0.11472997]
[1766958374774,0.05712,87646.0,87630.0,0.11472997]
[1766958386483,0.05712,87646.0,87629.0,0.00017121]
[1766958386683,0.02431519,87645.0,87629.0,0.00017121]
[1766958386982,0.02431519,87644.0,87629.0,0.00017121]
[1766958387186,0.02431519,87643.0,87629.0,0.00017121]
[1766958387378,0.02431519,87642.0,87629.0,0.00017121]
[1766958387585,0.02431519,87641.0,87629.0,0.02017121]
[1766958387786,0.02431519,87640.0,87629.0,0.02017121]
[1766958387985,0.02431519,87639.0,87629.0,0.02017121]
[1766958388185,0.02431519,87638.0,87629.0,0.02017121]
[1766958388385,0.02431519,87637.0,87629.0,0.02017121]
[1766958388582,0.05712,87646.0,87629.0,0.02017121]
[1766958388786,0.02431529,87645.0,87629.0,0.02017121]
[1766958389083,0.02431529,87644.0,87629.0,0.02017121]
[1766958389272,0.02431529,87643.0,87629.0,0.02017121]